[Event "Titled Tuesday Blitz May 03 Early 2022"]
[White "Redor, Menandro"]
[Black "Bongo Akanga Ndjila, Barthelemy"]
[WhiteFideId "5222010"]
[BlackFideId "10609431"]
[WhiteElo "1986"]
[BlackElo "1768"]
[Result "1-0"]
[Round "05"]
[TimeControl "180+1"]
[Date "2022.05.03"]
[WhiteClock "0:00:14"]
[BlackClock "0:00:37"]

1. d4 {[%clk 0:02:53]}  d5 {[%clk 0:02:58]} 2. c4 {[%clk 0:02:52]}  e6 {[%clk 0:02:58]} 3. cxd5 {[%clk 0:02:53]}  exd5 {[%clk 0:02:54]} 4. Nc3 {[%clk 0:02:54]}  Nf6 {[%clk 0:02:54]} 5. Nf3 {[%clk 0:02:54]}  Be7 {[%clk 0:02:54]} 6. Bf4 {[%clk 0:02:54]}  c6 {[%clk 0:02:54]} 7. e3 {[%clk 0:02:54]}  O-O {[%clk 0:02:54]} 8. Bd3 {[%clk 0:02:54]}  Re8 {[%clk 0:02:55]} 9. O-O {[%clk 0:02:54]}  Nbd7 {[%clk 0:02:54]} 10. Rc1 {[%clk 0:02:51]}  Nf8 {[%clk 0:02:50]} 11. a3 {[%clk 0:02:51]}  a5 {[%clk 0:02:48]} 12. h3 {[%clk 0:02:47]}  Ng6 {[%clk 0:02:47]} 13. Bg3 {[%clk 0:02:46]}  Bd6 {[%clk 0:02:44]} 14. Bxg6 {[%clk 0:02:36]}  hxg6 {[%clk 0:02:41]} 15. Ne5 {[%clk 0:02:35]}  Qe7 {[%clk 0:02:17]} 16. f4 {[%clk 0:02:21]}  Ne4 {[%clk 0:02:04]} 17. Nxe4 {[%clk 0:02:19]}  dxe4 {[%clk 0:02:03]} 18. Qb3 {[%clk 0:02:14]}  Be6 {[%clk 0:02:01]} 19. Qc2 {[%clk 0:02:14]}  Bd5 {[%clk 0:02:01]} 20. Kh2 {[%clk 0:02:07]}  a4 {[%clk 0:02:00]} 21. f5 {[%clk 0:01:58]}  gxf5 {[%clk 0:01:58]} 22. Rxf5 {[%clk 0:01:56]}  f6 {[%clk 0:01:50]} 23. Ng6 {[%clk 0:01:50]}  Bxg3+ {[%clk 0:01:50]} 24. Kxg3 {[%clk 0:01:49]}  Qd6+ {[%clk 0:01:45]} 25. Kf2 {[%clk 0:01:41]}  Bf7 {[%clk 0:01:41]} 26. Nf4 {[%clk 0:01:35]}  Bb3 {[%clk 0:01:24]} 27. Qe2 {[%clk 0:01:31]}  Qd7 {[%clk 0:01:16]} 28. Qh5 {[%clk 0:01:19]}  Bf7 {[%clk 0:01:13]} 29. Ng6 {[%clk 0:01:19]}  Bxg6 {[%clk 0:01:08]} 30. Qxg6 {[%clk 0:01:19]}  Qf7 {[%clk 0:01:04]} 31. Qxf7+ {[%clk 0:01:03]}  Kxf7 {[%clk 0:01:05]} 32. h4 {[%clk 0:00:57]}  g6 {[%clk 0:01:05]} 33. Rf4 {[%clk 0:00:55]}  Ra5 {[%clk 0:01:01]} 34. Ke2 {[%clk 0:00:46]}  Rb5 {[%clk 0:00:59]} 35. Rc2 {[%clk 0:00:46]}  Rb3 {[%clk 0:00:59]} 36. Rf2 {[%clk 0:00:42]}  f5 {[%clk 0:00:57]} 37. g3 {[%clk 0:00:38]}  Rh8 {[%clk 0:00:54]} 38. Kd2 {[%clk 0:00:34]}  Kf6 {[%clk 0:00:53]} 39. Kc1 {[%clk 0:00:31]}  Rd3 {[%clk 0:00:51]} 40. Rc3 {[%clk 0:00:24]}  Rxc3+ {[%clk 0:00:47]} 41. bxc3 {[%clk 0:00:24]}  Ra8 {[%clk 0:00:46]} 42. Kc2 {[%clk 0:00:19]}  Ra5 {[%clk 0:00:46]} 43. g4 {[%clk 0:00:19]}  Rb5 {[%clk 0:00:46]} 44. h5 {[%clk 0:00:18]}  b6 {[%clk 0:00:41]} 45. hxg6 {[%clk 0:00:17]}  Kxg6 {[%clk 0:00:41]} 46. gxf5+ {[%clk 0:00:15]}  Rxf5 {[%clk 0:00:41]} 47. Rxf5 {[%clk 0:00:15]}  Kxf5 {[%clk 0:00:41]} 48. c4 {[%clk 0:00:16]}  Kg4 {[%clk 0:00:40]} 49. Kc3 {[%clk 0:00:14]}  Kf3 {[%clk 0:00:38]} 50. d5 {[%clk 0:00:14]}  cxd5 {[%clk 0:00:37]} 51. cxd5 {[%clk 0:00:15]}  Kxe3 {[%clk 0:00:38]} 52. d6 {[%clk 0:00:16]}  Kf2 {[%clk 0:00:39]} 53. d7 {[%clk 0:00:16]}  e3 {[%clk 0:00:40]} 54. d8=Q {[%clk 0:00:16]}  e2 {[%clk 0:00:41]} 55. Qf6+ {[%clk 0:00:16]}  Ke3 {[%clk 0:00:37]} 56. Qe5+ {[%clk 0:00:15]}  Kf2 {[%clk 0:00:37]} 57. Kd2 {[%clk 0:00:14]} 1-0


[Site "https://www.chess.com"]

[Event "Titled Tuesday Blitz May 03 Early 2022"]
[White "Rohith Krishna S"]
[Black "Avramidou, Anastasia"]
[WhiteFideId "46617051"]
[BlackFideId "4239873"]
[WhiteElo "2725"]
[BlackElo "2517"]
[Result "1-0"]
[Round "05"]
[TimeControl "180+1"]
[Date "2022.05.03"]
[WhiteClock "0:01:20"]
[BlackClock "0:00:13"]

1. e4 {[%clk 0:03:00]}  g6 {[%clk 0:02:43]} 2. d4 {[%clk 0:03:00]}  Bg7 {[%clk 0:02:42]} 3. c3 {[%clk 0:03:00]}  d6 {[%clk 0:02:41]} 4. Bd3 {[%clk 0:03:00]}  Nf6 {[%clk 0:02:42]} 5. Ne2 {[%clk 0:03:00]}  O-O {[%clk 0:02:42]} 6. O-O {[%clk 0:03:01]}  a6 {[%clk 0:02:42]} 7. h3 {[%clk 0:03:01]}  b5 {[%clk 0:02:43]} 8. f4 {[%clk 0:03:01]}  Bb7 {[%clk 0:02:43]} 9. e5 {[%clk 0:03:01]}  Ne4 {[%clk 0:02:43]} 10. Be3 {[%clk 0:03:01]}  dxe5 {[%clk 0:02:43]} 11. fxe5 {[%clk 0:03:01]}  c5 {[%clk 0:02:43]} 12. Nd2 {[%clk 0:03:00]}  Nxd2 {[%clk 0:02:42]} 13. Qxd2 {[%clk 0:03:01]}  cxd4 {[%clk 0:02:42]} 14. cxd4 {[%clk 0:03:02]}  Nc6 {[%clk 0:02:42]} 15. Be4 {[%clk 0:03:01]}  Qd7 {[%clk 0:02:35]} 16. Bf3 {[%clk 0:02:43]}  e6 {[%clk 0:02:24]} 17. Nc3 {[%clk 0:02:35]}  Rfd8 {[%clk 0:02:22]} 18. Rad1 {[%clk 0:02:36]}  Rac8 {[%clk 0:02:12]} 19. Ne4 {[%clk 0:02:33]}  Ne7 {[%clk 0:00:58]} 20. Nd6 {[%clk 0:02:21]}  Bxf3 {[%clk 0:00:51]} 21. Rxf3 {[%clk 0:02:22]}  Nf5 {[%clk 0:00:52]} 22. Nxc8 {[%clk 0:02:20]}  Rxc8 {[%clk 0:00:53]} 23. g4 {[%clk 0:02:13]}  Ne7 {[%clk 0:00:53]} 24. Rdf1 {[%clk 0:02:09]}  Rf8 {[%clk 0:00:52]} 25. Bg5 {[%clk 0:02:04]}  Nc6 {[%clk 0:00:50]} 26. Be3 {[%clk 0:01:46]}  Qd5 {[%clk 0:00:46]} 27. Qf2 {[%clk 0:01:47]}  Qd7 {[%clk 0:00:43]} 28. h4 {[%clk 0:01:44]}  Nb4 {[%clk 0:00:38]} 29. h5 {[%clk 0:01:41]}  Nd5 {[%clk 0:00:32]} 30. hxg6 {[%clk 0:01:41]}  hxg6 {[%clk 0:00:32]} 31. Bd2 {[%clk 0:01:40]}  Nb6 {[%clk 0:00:25]} 32. Bb4 {[%clk 0:01:39]}  Rd8 {[%clk 0:00:21]} 33. Bc5 {[%clk 0:01:20]}  Na4 {[%clk 0:00:14]} 34. Rxf7 {[%clk 0:01:20]}  Qe8 {[%clk 0:00:13]} 35. Re7 {[%clk 0:01:20]} 1-0


[Site "https://www.chess.com"]

[Event "Titled Tuesday Blitz May 03 Early 2022"]
[White "Shohat, Yotam"]
[Black "Rosen, Eric"]
[WhiteFideId "2813955"]
[BlackFideId "2032562"]
[WhiteElo "2119"]
[BlackElo "2362"]
[Result "0-1"]
[Round "05"]
[TimeControl "180+1"]
[Date "2022.05.03"]
[WhiteClock "0:00:01"]
[BlackClock "0:00:28"]

1. e4 {[%clk 0:03:00]}  e5 {[%clk 0:02:17]} 2. f4 {[%clk 0:02:57]}  d5 {[%clk 0:02:13]} 3. Nf3 {[%clk 0:02:56]}  exf4 {[%clk 0:02:05]} 4. exd5 {[%clk 0:02:54]}  Nf6 {[%clk 0:02:04]} 5. Bb5+ {[%clk 0:02:54]}  c6 {[%clk 0:02:03]} 6. dxc6 {[%clk 0:02:53]}  bxc6 {[%clk 0:02:01]} 7. Be2 {[%clk 0:02:53]}  Bd6 {[%clk 0:02:01]} 8. O-O {[%clk 0:02:50]}  O-O {[%clk 0:02:02]} 9. d4 {[%clk 0:02:49]}  Re8 {[%clk 0:01:57]} 10. c4 {[%clk 0:02:48]}  Bg4 {[%clk 0:01:54]} 11. Nc3 {[%clk 0:02:47]}  Nbd7 {[%clk 0:01:52]} 12. Qc2 {[%clk 0:02:20]}  Nf8 {[%clk 0:01:51]} 13. Ne5 {[%clk 0:01:51]}  Bxe5 {[%clk 0:01:23]} 14. dxe5 {[%clk 0:01:48]}  Rxe5 {[%clk 0:01:21]} 15. Bxf4 {[%clk 0:01:47]}  Re6 {[%clk 0:00:57]} 16. Rad1 {[%clk 0:01:40]}  Qb6+ {[%clk 0:00:57]} 17. Kh1 {[%clk 0:01:40]}  Ng6 {[%clk 0:00:57]} 18. Bg3 {[%clk 0:01:30]}  Rae8 {[%clk 0:00:57]} 19. Rxf6 {[%clk 0:00:46]}  Rxe2 {[%clk 0:00:48]} 20. Nxe2 {[%clk 0:00:43]}  Rxe2 {[%clk 0:00:49]} 21. Rxg6 {[%clk 0:00:18]}  Rxc2 {[%clk 0:00:44]} 22. Rxg4 {[%clk 0:00:14]}  h5 {[%clk 0:00:40]} 23. Rgd4 {[%clk 0:00:13]}  Qxb2 {[%clk 0:00:41]} 24. Rd8+ {[%clk 0:00:10]}  Kh7 {[%clk 0:00:41]} 25. Rg1 {[%clk 0:00:10]}  Qf6 {[%clk 0:00:38]} 26. Rd6 {[%clk 0:00:09]}  Qb2 {[%clk 0:00:35]} 27. Rxc6 {[%clk 0:00:09]}  Qxa2 {[%clk 0:00:35]} 28. h3 {[%clk 0:00:07]}  Qa4 {[%clk 0:00:34]} 29. Rc5 {[%clk 0:00:06]}  Kg6 {[%clk 0:00:32]} 30. Rf1 {[%clk 0:00:05]}  f6 {[%clk 0:00:32]} 31. Rcf5 {[%clk 0:00:02]}  Rxc4 {[%clk 0:00:32]} 32. Bh2 {[%clk 0:00:02]}  Qc2 {[%clk 0:00:30]} 33. R5f3 {[%clk 0:00:02]}  Ra4 {[%clk 0:00:30]} 34. Re1 {[%clk 0:00:02]}  Ra2 {[%clk 0:00:30]} 35. Rg3+ {[%clk 0:00:02]}  Kh7 {[%clk 0:00:30]} 36. Re7 {[%clk 0:00:03]}  Ra1+ {[%clk 0:00:30]} 37. Bg1 {[%clk 0:00:03]}  Rxg1+ {[%clk 0:00:27]} 38. Kxg1 {[%clk 0:00:04]}  Qc5+ {[%clk 0:00:28]} 39. Ree3 {[%clk 0:00:03]}  f5 {[%clk 0:00:28]} 40. Rf3 {[%clk 0:00:01]}  f4 {[%clk 0:00:28]} 0-1


[Site "https://www.chess.com"]

[Event "Titled Tuesday Blitz May 03 Early 2022"]
[White "Shuvalov, Evgenij"]
[Black "Cherniaiev, Tykhon"]
[WhiteFideId "4187237"]
[BlackFideId "14182360"]
[WhiteElo "2514"]
[BlackElo "2707"]
[Result "1/2-1/2"]
[Round "05"]
[TimeControl "180+1"]
[Date "2022.05.03"]
[WhiteClock "0:00:22"]
[BlackClock "0:00:07"]

1. Nf3 {[%clk 0:03:00]}  Nf6 {[%clk 0:02:59]} 2. c4 {[%clk 0:03:01]}  c5 {[%clk 0:02:59]} 3. d4 {[%clk 0:03:01]}  cxd4 {[%clk 0:02:59]} 4. Nxd4 {[%clk 0:03:01]}  Nc6 {[%clk 0:02:59]} 5. Nc3 {[%clk 0:03:00]}  e6 {[%clk 0:03:00]} 6. Nxc6 {[%clk 0:02:56]}  bxc6 {[%clk 0:02:59]} 7. g3 {[%clk 0:02:52]}  Be7 {[%clk 0:02:59]} 8. Bg2 {[%clk 0:02:52]}  O-O {[%clk 0:03:00]} 9. O-O {[%clk 0:02:53]}  d5 {[%clk 0:02:59]} 10. Qc2 {[%clk 0:02:49]}  Bb7 {[%clk 0:02:58]} 11. Rd1 {[%clk 0:02:49]}  Rc8 {[%clk 0:02:56]} 12. b3 {[%clk 0:02:44]}  Qc7 {[%clk 0:02:53]} 13. Bb2 {[%clk 0:02:37]}  Rfd8 {[%clk 0:02:52]} 14. Rac1 {[%clk 0:02:36]}  a6 {[%clk 0:02:49]} 15. Na4 {[%clk 0:02:33]}  c5 {[%clk 0:01:43]} 16. cxd5 {[%clk 0:02:16]}  Nxd5 {[%clk 0:01:42]} 17. a3 {[%clk 0:02:07]}  h6 {[%clk 0:01:14]} 18. e4 {[%clk 0:01:46]}  Nb6 {[%clk 0:01:13]} 19. Be5 {[%clk 0:01:44]}  Qxe5 {[%clk 0:00:58]} 20. Nxb6 {[%clk 0:01:43]}  Rxd1+ {[%clk 0:00:59]} 21. Rxd1 {[%clk 0:01:41]}  Rd8 {[%clk 0:00:59]} 22. Nc4 {[%clk 0:01:23]}  Rxd1+ {[%clk 0:00:54]} 23. Qxd1 {[%clk 0:01:24]}  Qd4 {[%clk 0:00:51]} 24. Qxd4 {[%clk 0:01:21]}  cxd4 {[%clk 0:00:52]} 25. e5 {[%clk 0:01:21]}  Bd5 {[%clk 0:00:45]} 26. Bxd5 {[%clk 0:01:14]}  exd5 {[%clk 0:00:46]} 27. Nb6 {[%clk 0:01:15]}  Bxa3 {[%clk 0:00:39]} 28. Kf1 {[%clk 0:01:09]}  d3 {[%clk 0:00:36]} 29. Nxd5 {[%clk 0:01:07]}  Bc5 {[%clk 0:00:31]} 30. f4 {[%clk 0:01:04]}  g5 {[%clk 0:00:19]} 31. f5 {[%clk 0:01:01]}  Bd4 {[%clk 0:00:13]} 32. e6 {[%clk 0:00:59]}  fxe6 {[%clk 0:00:13]} 33. fxe6 {[%clk 0:01:00]}  Kf8 {[%clk 0:00:12]} 34. g4 {[%clk 0:00:59]}  Be5 {[%clk 0:00:09]} 35. h3 {[%clk 0:00:59]}  Bf4 {[%clk 0:00:10]} 36. Ke1 {[%clk 0:00:59]}  Bc1 {[%clk 0:00:09]} 37. Kd1 {[%clk 0:00:58]}  d2 {[%clk 0:00:04]} 38. Ke2 {[%clk 0:00:54]}  Ke8 {[%clk 0:00:04]} 39. Nc7+ {[%clk 0:00:52]}  Ke7 {[%clk 0:00:05]} 40. Nxa6 {[%clk 0:00:53]}  Kxe6 {[%clk 0:00:05]} 41. Nc5+ {[%clk 0:00:50]}  Kd5 {[%clk 0:00:06]} 42. Nd7 {[%clk 0:00:35]}  Kd4 {[%clk 0:00:06]} 43. Nf6 {[%clk 0:00:30]}  Kc3 {[%clk 0:00:06]} 44. Kd1 {[%clk 0:00:30]}  Kxb3 {[%clk 0:00:06]} 45. Ng8 {[%clk 0:00:30]}  Kc3 {[%clk 0:00:05]} 46. Nxh6 {[%clk 0:00:30]}  Kd3 {[%clk 0:00:05]} 47. Nf7 {[%clk 0:00:30]}  Ke4 {[%clk 0:00:05]} 48. Nxg5+ {[%clk 0:00:31]}  Kf4 {[%clk 0:00:06]} 49. Ne6+ {[%clk 0:00:29]}  Kg3 {[%clk 0:00:06]} 50. g5 {[%clk 0:00:29]}  Kxh3 {[%clk 0:00:07]} 51. g6 {[%clk 0:00:29]}  Bb2 {[%clk 0:00:07]} 52. Kxd2 {[%clk 0:00:29]}  Kg4 {[%clk 0:00:08]} 53. Kc2 {[%clk 0:00:26]}  Kf5 {[%clk 0:00:07]} 54. Kxb2 {[%clk 0:00:22]}  Kxg6 {[%clk 0:00:07]} 1/2-1/2


[Site "https://www.chess.com"]

[Event "Titled Tuesday Blitz May 03 Early 2022"]
[White "Silvestre, Christian"]
[Black "Harish, Neeraj"]
[WhiteFideId "30956269"]
[BlackFideId "30958130"]
[WhiteElo "2352"]
[BlackElo "1574"]
[Result "1-0"]
[Round "05"]
[TimeControl "180+1"]
[Date "2022.05.03"]
[WhiteClock "0:00:12"]
[BlackClock "0:00:06"]

1. c4 {[%clk 0:03:00]}  Nf6 {[%clk 0:02:57]} 2. Nf3 {[%clk 0:03:00]}  g6 {[%clk 0:02:56]} 3. Nc3 {[%clk 0:02:58]}  Bg7 {[%clk 0:02:54]} 4. e4 {[%clk 0:02:58]}  e5 {[%clk 0:02:53]} 5. g3 {[%clk 0:02:56]}  O-O {[%clk 0:02:52]} 6. Bg2 {[%clk 0:02:56]}  Nc6 {[%clk 0:02:47]} 7. h3 {[%clk 0:02:54]}  d6 {[%clk 0:02:44]} 8. d3 {[%clk 0:02:54]}  Be6 {[%clk 0:02:38]} 9. Rb1 {[%clk 0:02:52]}  a5 {[%clk 0:02:36]} 10. a3 {[%clk 0:02:50]}  Nd7 {[%clk 0:02:12]} 11. Ng5 {[%clk 0:02:43]}  h6 {[%clk 0:02:11]} 12. Nxe6 {[%clk 0:02:42]}  fxe6 {[%clk 0:02:12]} 13. Ne2 {[%clk 0:02:29]}  a4 {[%clk 0:02:06]} 14. O-O {[%clk 0:02:24]}  Nf6 {[%clk 0:01:39]} 15. Be3 {[%clk 0:02:20]}  d5 {[%clk 0:01:35]} 16. Qc1 {[%clk 0:02:06]}  Kh7 {[%clk 0:01:31]} 17. Rd1 {[%clk 0:01:55]}  d4 {[%clk 0:01:27]} 18. Bd2 {[%clk 0:01:55]}  Nd7 {[%clk 0:01:21]} 19. Qc2 {[%clk 0:01:50]}  Nc5 {[%clk 0:01:20]} 20. Rf1 {[%clk 0:01:46]}  Qd7 {[%clk 0:01:01]} 21. h4 {[%clk 0:01:35]}  b6 {[%clk 0:00:52]} 22. Bh3 {[%clk 0:01:31]}  Qd6 {[%clk 0:00:44]} 23. Nc1 {[%clk 0:01:19]}  Rf3 {[%clk 0:00:40]} 24. Bg4 {[%clk 0:01:15]}  Rf7 {[%clk 0:00:40]} 25. Be2 {[%clk 0:01:15]}  Raf8 {[%clk 0:00:37]} 26. Qd1 {[%clk 0:01:13]}  h5 {[%clk 0:00:17]} 27. Bb4 {[%clk 0:01:12]}  Ra8 {[%clk 0:00:16]} 28. Bd2 {[%clk 0:01:07]}  Bh6 {[%clk 0:00:16]} 29. Bxh6 {[%clk 0:01:04]}  Kxh6 {[%clk 0:00:17]} 30. Kg2 {[%clk 0:00:39]}  Raf8 {[%clk 0:00:15]} 31. Qd2+ {[%clk 0:00:38]}  Kh7 {[%clk 0:00:15]} 32. Bd1 {[%clk 0:00:34]}  Qd8 {[%clk 0:00:14]} 33. Na2 {[%clk 0:00:29]}  Qd7 {[%clk 0:00:06]} 34. Nb4 {[%clk 0:00:28]}  Na5 {[%clk 0:00:06]} 35. Qg5 {[%clk 0:00:20]}  Nab3 {[%clk 0:00:07]} 36. Bxb3 {[%clk 0:00:19]}  Nxb3 {[%clk 0:00:07]} 37. Rbd1 {[%clk 0:00:15]}  c5 {[%clk 0:00:07]} 38. Nc2 {[%clk 0:00:13]}  Qd6 {[%clk 0:00:07]} 39. Ne1 {[%clk 0:00:12]}  Na5 {[%clk 0:00:07]} 40. f3 {[%clk 0:00:12]}  Nc6 {[%clk 0:00:07]} 41. f4 {[%clk 0:00:12]}  exf4 {[%clk 0:00:07]} 42. gxf4 {[%clk 0:00:13]}  e5 {[%clk 0:00:08]} 43. f5 {[%clk 0:00:12]}  gxf5 {[%clk 0:00:07]} 44. Qxh5+ {[%clk 0:00:12]}  Kg8 {[%clk 0:00:07]} 45. Kh2 {[%clk 0:00:12]}  Rg7 {[%clk 0:00:07]} 46. Nf3 {[%clk 0:00:11]}  f4 {[%clk 0:00:08]} 47. Ng5 {[%clk 0:00:11]}  Qg6 {[%clk 0:00:08]} 48. Qg4 {[%clk 0:00:11]}  f3 {[%clk 0:00:06]} 49. Qe6+ {[%clk 0:00:11]}  Qxe6 {[%clk 0:00:05]} 50. Nxe6 {[%clk 0:00:12]}  Rg2+ {[%clk 0:00:05]} 51. Kh3 {[%clk 0:00:12]}  Rf7 {[%clk 0:00:06]} 52. Ng5 {[%clk 0:00:12]}  Rg7 {[%clk 0:00:06]} 53. Rxf3 {[%clk 0:00:12]}  Rxb2 {[%clk 0:00:06]} 54. Rdf1 {[%clk 0:00:12]}  Rb3 {[%clk 0:00:06]} 55. Rf8# {[%clk 0:00:12]} 1-0


[Site "https://www.chess.com"]

[Event "Titled Tuesday Blitz May 03 Early 2022"]
[White "Sirosh, Ilja"]
[Black "Samarth, J Rao"]
[WhiteFideId "4500458"]
[BlackFideId "46652370"]
[WhiteElo "2241"]
[BlackElo "1514"]
[Result "1-0"]
[Round "05"]
[TimeControl "180+1"]
[Date "2022.05.03"]
[WhiteClock "0:01:33"]
[BlackClock "0:01:12"]

1. e4 {[%clk 0:02:35]}  c5 {[%clk 0:02:38]} 2. Nf3 {[%clk 0:02:35]}  g6 {[%clk 0:02:38]} 3. c4 {[%clk 0:02:34]}  Bg7 {[%clk 0:02:38]} 4. d4 {[%clk 0:02:34]}  cxd4 {[%clk 0:02:39]} 5. Nxd4 {[%clk 0:02:35]}  Nc6 {[%clk 0:02:39]} 6. Be3 {[%clk 0:02:35]}  Nf6 {[%clk 0:02:38]} 7. Nc3 {[%clk 0:02:36]}  O-O {[%clk 0:02:37]} 8. Be2 {[%clk 0:02:36]}  d6 {[%clk 0:02:37]} 9. O-O {[%clk 0:02:37]}  Bd7 {[%clk 0:02:37]} 10. h3 {[%clk 0:02:37]}  Nxd4 {[%clk 0:02:37]} 11. Bxd4 {[%clk 0:02:38]}  Bc6 {[%clk 0:02:37]} 12. Qc2 {[%clk 0:02:38]}  a5 {[%clk 0:02:37]} 13. Rad1 {[%clk 0:02:39]}  Nd7 {[%clk 0:02:36]} 14. Bxg7 {[%clk 0:02:39]}  Kxg7 {[%clk 0:02:37]} 15. Bg4 {[%clk 0:02:40]}  Nc5 {[%clk 0:02:30]} 16. e5 {[%clk 0:02:39]}  Qc7 {[%clk 0:02:27]} 17. exd6 {[%clk 0:02:39]}  exd6 {[%clk 0:02:28]} 18. Nd5 {[%clk 0:02:35]}  Bxd5 {[%clk 0:02:27]} 19. Rxd5 {[%clk 0:02:36]}  Rad8 {[%clk 0:02:26]} 20. Qc3+ {[%clk 0:02:35]}  f6 {[%clk 0:02:26]} 21. Bf3 {[%clk 0:02:35]}  Rfe8 {[%clk 0:02:25]} 22. Rfd1 {[%clk 0:02:31]}  Re5 {[%clk 0:02:24]} 23. b3 {[%clk 0:02:29]}  b6 {[%clk 0:02:22]} 24. h4 {[%clk 0:02:28]}  Rxd5 {[%clk 0:02:15]} 25. Rxd5 {[%clk 0:02:29]}  Re8 {[%clk 0:02:14]} 26. h5 {[%clk 0:02:28]}  Qe7 {[%clk 0:02:09]} 27. Kh2 {[%clk 0:02:22]}  Ne6 {[%clk 0:01:53]} 28. Qd2 {[%clk 0:02:20]}  Ng5 {[%clk 0:01:50]} 29. h6+ {[%clk 0:02:08]}  Kxh6 {[%clk 0:01:46]} 30. Rxd6 {[%clk 0:02:08]}  Qe5+ {[%clk 0:01:45]} 31. g3 {[%clk 0:02:08]}  Qe1 {[%clk 0:01:31]} 32. Bg2 {[%clk 0:01:39]}  Qe5 {[%clk 0:01:12]} 33. f4 {[%clk 0:01:33]} 1-0


[Site "https://www.chess.com"]

[Event "Titled Tuesday Blitz May 03 Early 2022"]
[White "Sjugirov, Sanan"]
[Black "Arabidze, Meri"]
[WhiteFideId "4189302"]
[BlackFideId "13604040"]
[WhiteElo "2907"]
[BlackElo "2663"]
[Result "1-0"]
[Round "05"]
[TimeControl "180+1"]
[Date "2022.05.03"]
[WhiteClock "0:01:50"]
[BlackClock "0:00:06"]

1. d4 {[%clk 0:03:00]}  f5 {[%clk 0:02:59]} 2. Bf4 {[%clk 0:02:59]}  Nf6 {[%clk 0:02:58]} 3. e3 {[%clk 0:03:00]}  e6 {[%clk 0:02:58]} 4. Nf3 {[%clk 0:02:59]}  b6 {[%clk 0:02:59]} 5. Bd3 {[%clk 0:02:58]}  Bb7 {[%clk 0:02:59]} 6. Nbd2 {[%clk 0:02:58]}  Bd6 {[%clk 0:02:57]} 7. Qe2 {[%clk 0:02:58]}  Bxf4 {[%clk 0:02:56]} 8. exf4 {[%clk 0:02:59]}  O-O {[%clk 0:02:56]} 9. O-O-O {[%clk 0:02:49]}  a5 {[%clk 0:02:48]} 10. Kb1 {[%clk 0:02:45]}  Ba6 {[%clk 0:02:40]} 11. g3 {[%clk 0:02:42]}  Bxd3 {[%clk 0:02:38]} 12. Qxd3 {[%clk 0:02:43]}  Nc6 {[%clk 0:02:39]} 13. c3 {[%clk 0:02:43]}  a4 {[%clk 0:02:37]} 14. Ne5 {[%clk 0:02:39]}  Ne7 {[%clk 0:02:28]} 15. a3 {[%clk 0:02:35]}  c6 {[%clk 0:02:25]} 16. h3 {[%clk 0:02:29]}  b5 {[%clk 0:02:21]} 17. Rhe1 {[%clk 0:02:14]}  Ned5 {[%clk 0:02:17]} 18. Qf3 {[%clk 0:02:04]}  Ne8 {[%clk 0:02:09]} 19. Nd3 {[%clk 0:02:04]}  Nd6 {[%clk 0:02:06]} 20. Re2 {[%clk 0:02:04]}  Rb8 {[%clk 0:01:55]} 21. Ka1 {[%clk 0:02:04]}  Qc7 {[%clk 0:01:41]} 22. Nc5 {[%clk 0:02:04]}  Rb6 {[%clk 0:01:34]} 23. Rde1 {[%clk 0:02:04]}  Nc4 {[%clk 0:01:32]} 24. Nb1 {[%clk 0:01:58]}  Qd6 {[%clk 0:01:19]} 25. Qd3 {[%clk 0:01:57]}  Rbb8 {[%clk 0:01:16]} 26. Nd2 {[%clk 0:01:57]}  Nxd2 {[%clk 0:01:14]} 27. Qxd2 {[%clk 0:01:57]}  Rbe8 {[%clk 0:01:04]} 28. Qd3 {[%clk 0:01:57]}  Re7 {[%clk 0:01:03]} 29. Qf3 {[%clk 0:01:58]}  Qb8 {[%clk 0:00:54]} 30. Nd3 {[%clk 0:01:57]}  Rfe8 {[%clk 0:00:50]} 31. Ne5 {[%clk 0:01:57]}  Qc7 {[%clk 0:00:49]} 32. g4 {[%clk 0:01:55]}  Rf8 {[%clk 0:00:43]} 33. Rg1 {[%clk 0:01:50]}  d6 {[%clk 0:00:40]} 34. Nd3 {[%clk 0:01:50]}  Ref7 {[%clk 0:00:25]} 35. Rxe6 {[%clk 0:01:49]}  fxg4 {[%clk 0:00:25]} 36. Rxg4 {[%clk 0:01:49]}  Qd7 {[%clk 0:00:20]} 37. Re1 {[%clk 0:01:49]}  Qf5 {[%clk 0:00:19]} 38. Reg1 {[%clk 0:01:49]}  g6 {[%clk 0:00:18]} 39. h4 {[%clk 0:01:50]}  Nf6 {[%clk 0:00:17]} 40. Rg5 {[%clk 0:01:50]}  Qe4 {[%clk 0:00:17]} 41. Qg3 {[%clk 0:01:49]}  Kh8 {[%clk 0:00:12]} 42. Re1 {[%clk 0:01:49]}  d5 {[%clk 0:00:06]} 43. Rxe4 {[%clk 0:01:49]}  Nxe4 {[%clk 0:00:07]} 44. Qe3 {[%clk 0:01:49]}  Nxg5 {[%clk 0:00:06]} 45. hxg5 {[%clk 0:01:50]} 1-0


[Site "https://www.chess.com"]